[Event "XV American Continental 2022"]
[Site "San Salvador"]
[Date "2022.05.10"]
[Round "11.3"]
[White "Kaidanov, Gregory"]
[Black "Proudian, Armen"]
[Result "1/2-1/2"]
[ECO "E24"]
[WhiteElo "2556"]
[BlackElo "2418"]
[Annotator "TA"]
[PlyCount "80"]
[EventDate "2022.05.02"]
[EventCountry "ESA"]
[SourceTitle "playchess.com"]
[Source "ChessBase"]
[SourceQuality "1"]
[TimeControl "40/5400+30:1800+30"]

{[%evp 13,80,-30,-19,-29,-16,-45,-33,-63,-43,-75,-70,-68,-56,-61,0,0,0,0,0,1,28,-33,-34,-51,-48,-51,-26,-18,0,0,0,0,0,-6,0,0,0,0,0,0,0,0,0,0,6,0,0,0,0,0,0,0,0,0,0,0,0,0,12,0,0,0,0,0,0,0,0,0,0]} 1. d4 {[%emt 0:00:04]} Nf6 {[%emt 0:00:27]} 2. c4 {[%emt 0:00:04]} e6 {[%emt 0:00:25]} 3. Nc3 {[%emt 0:00:07]} Bb4 {[%emt 0:00:27]} 4. a3 {[%emt 0:00:06]} Bxc3+ {[%emt 0:00:39]} 5. bxc3 {[%emt 0:00:03]} c5 {[%emt 0:00:55]} 6. f3 {[%emt 0:03:19]} Nc6 {[%emt 0:02:07][%cal Bb8c6,Bc6a5,Ba5c4][%mdl 32] The modern move.} 7. e4 {[%emt 0:00:31]} d6 {[%emt 0:01:09]} 8. Ne2 {[%emt 0:05:20] E24: Nimzo-Indian: Sämisch: Unusual Black 5th moves and 5...c5 sidelines.} b6 {[%emt 0:06:52]} 9. Ng3 {[%emt 0:07:14]} Na5 {[%emt 0:04:16]} 10. Bd3 {[%emt 0:02:18] Black is slightly better.} Ba6 {[%emt 0:02:12]} 11. e5 {[%emt 0:09:36]} dxe5 {[%emt 0:04:22]} 12. dxe5 {[%emt 0:00:31]} Nd7 {[%emt 0:02:40] Pair of Knights!} 13. f4 {[%emt 0:03:57] [#]} Bxc4 $146 {[%emt 0:08:33]} (13... f5 $15) ({Predecessor:} 13... f5 14. O-O Qc7 15. Qh5+ g6 16. Qe2 O-O-O 17. Be3 Nb8 18. Rfd1 Rhg8 19. Bf2 Bb7 {0-1 (28) Adelseck,H (2396)-Ibragimov,V (2431) GER email 2017}) 14. Bxc4 $11 {[%emt 0:00:18]} Nxc4 {[%emt 0:00:10]} 15. O-O {[%emt 0:03:56]} b5 {[%emt 0:08:33] Inhibits Qa4.} 16. a4 {[%emt 0:03:32]} a6 {[%emt 0:02:57]} 17. axb5 {[%emt 0:10:06]} ({White should play} 17. f5 $1 $11 Ndxe5 18. Qxd8+ Rxd8 19. axb5) 17... axb5 $15 {[%emt 0:00:35]} 18. Rxa8 {[%emt 0:00:06]} Qxa8 {[%emt 0:00:06]} 19. f5 $1 {[%emt 0:10:16][%cal Bf4f5,Bf5e6,Be6f7][%mdl 32] [#] Hoping for Qg4.} Qd5 {[%emt 0:21:27]} 20. fxe6 {[%emt 0:03:09]} Qxd1 {[%emt 0:10:30] The position is equal.} ({Resist} 20... Qxe6 21. Nf5 Kd8 22. Nxg7 $16) 21. exf7+ {[%emt 0:02:07]} Ke7 {[%emt 0:00:13]} 22. Rxd1 {[%emt 0:01:55]} Ndxe5 {[%emt 0:02:00]} 23. Ne4 {[%emt 0:01:45]} b4 {[%emt 0:04:08]} 24. Nxc5 {[%emt 0:02:26]} bxc3 {[%emt 0:00:16]} 25. Rf1 {[%emt 0:10:58] [#] aiming for Bg5+.} Nxf7 {[%emt 0:03:10]} 26. Ne4 {[%emt 0:01:59]} c2 {[%emt 0:00:47]} 27. Rf2 {[%emt 0:00:29]} Rd8 {[%emt 0:00:37] Strongly threatening ...Rd1+.} 28. Rxc2 {[%emt 0:00:16]} Rd1+ {[%emt 0:00:15]} 29. Kf2 {[%emt 0:00:05]} Nfe5 {[%emt 0:00:23][%cal Od1c1] And now ...Rxc1! would win.} 30. Bd2 {[%emt 0:04:50]} Ke6 {[%emt 0:03:19]} 31. Ke2 {[%emt 0:03:13]} Rg1 {[%emt 0:00:30]} 32. Kf2 {[%emt 0:00:21]} Rb1 {[%emt 0:03:11]} 33. Ke2 {[%emt 0:01:03]} Kf5 {[%emt 0:00:50]} 34. Ng3+ {[%emt 0:00:52]} Kg4 {[%emt 0:01:56]} 35. Bc3 {[%emt 0:02:30]} Ng6 {[%emt 0:03:41]} 36. Bd2 {[%emt 0:02:05]} Nxd2 {[%emt 0:01:19]} 37. Rxd2 {[%emt 0:00:16]} Rb4 {[%emt 0:01:51]} 38. Kf2 {[%emt 0:00:26]} Rf4+ {[%emt 0:00:26]} 39. Kg1 {[%emt 0:00:16]} Rf7 {[%emt 0:01:11] Prevents Rd7.} 40. Ne2 {[%emt 0:01:56]} Kg5 {[%emt 0:00:29] Weighted Error Value: White=0.06 (flawless) /Black=0.05 (flawless)} 1/2-1/2

[Event "XV American Continental 2022"]
[Site "San Salvador"]
[Date "2022.05.10"]
[Round "11.4"]
[White "Figueredo Losada, Leonel"]
[Black "Swiercz, Dariusz"]
[Result "1-0"]
[ECO "B12"]
[WhiteElo "2337"]
[BlackElo "2665"]
[Annotator "TA"]
[PlyCount "159"]
[EventDate "2022.05.02"]
[EventCountry "ESA"]
[SourceTitle "playchess.com"]
[Source "ChessBase"]
[SourceQuality "1"]
[TimeControl "40/5400+30:1800+30"]

{[%evp 16,159,0,0,0,0,-40,-33,-58,-60,-10,-21,-16,-16,-16,-16,-16,-13,-20,-47,-39,-40,-40,-176,-160,-143,-64,-60,-65,-61,-66,-190,-183,-183,-179,-175,-134,-134,-143,-219,-154,-147,-151,-135,0,0,0,0,0,0,0,0,0,0,0,0,0,0,0,0,0,0,367,347,330,311,244,244,556,466,889,3575,2387,2341,1000,5927,5387,1107,9889,8455,4894,5381,10270,9582,3491,2321,6768,6768,4586,3143,12841,9942,1113,29945,29941,29946,29947,29950,29949,29952,29950,29954,29949,29948,5743,4598,1633,67,29959,29957,29973,29972,29972,29973,29973,29974,29974,29975,29972,29974,29976,29977,29979,29970,29964,29965,29978,29980,29980,29981,29981,29982,29982,29983,29983,29984,29984,29985,29985,29986,29987,29988,29988,29988,29988,29989]} 1. e4 {[%emt 0:00:30]} c6 {[%emt 0:01:32][%cal Bc7c6,Bc6c5][%mdl 32]} 2. d4 {[%emt 0:01:46]} d5 {[%emt 0:00:04]} 3. e5 {[%emt 0:02:19]} Bf5 {[%emt 0:00:05]} 4. Nc3 {[%emt 0:02:59]} e6 {[%emt 0:00:13]} 5. g4 {[%emt 0:00:05]} Bg6 {[%emt 0:00:02]} 6. Nge2 {[%emt 0:00:09]} c5 {[%emt 0:00:05]} 7. h4 {[%emt 0:00:03]} h5 {[%emt 0:00:19]} 8. Nf4 {[%emt 0:00:10]} Bh7 {[%emt 0:00:09]} 9. Nxh5 {[%emt 0:00:17]} Nc6 {[%emt 0:01:05] 9...cxd4 is not played anymore. B12: Caro-Kann: Advance Variation.} 10. dxc5 $1 {[%emt 0:00:05]} Bxc5 {[%emt 0:00:14]} 11. Bg5 {[%emt 0:00:04] 11.Bg2 is not played anymore.} Qb6 {[%emt 0:00:18] Black is slightly better.} 12. Qd2 {[%emt 0:00:04]} Qxb2 {[%emt 0:00:45]} (12... Nd4 $1 $15 13. O-O-O (13. Nxg7+ Kf8 $17) 13... Bxc2) 13. Rb1 $11 {[%emt 0:00:20]} Qxc2 14. Qxc2 {[%emt 0:17:39]} Bxc2 {[%emt 0:00:12]} 15. Rc1 {[%emt 0:01:00]} d4 {[%emt 0:01:45] [#] aiming for ...d3.} 16. Rxc2 $146 {[%emt 0:15:09][%cal Oc3d5]} ({Predecessor:} 16. Nxg7+ Kf8 17. Rxc2 dxc3 18. Nh5 Bd4 19. Rh3 Nxe5 20. Be2 Ne7 21. Nf6 Nd5 22. Nxd5 exd5 {½-½ (30) Lockwood,A (2325)-Halliwell,T (2321) ICCF email 2013}) 16... dxc3 {[%emt 0:04:47]} 17. Bb5 {[%emt 0:03:12]} (17. Rxc3 Bb4 18. Bd2 (18. Nxg7+ $2 Kf8 $19) 18... Bxc3 19. Bxc3 Kf8 $17) 17... Nge7 {[%emt 0:35:24]} 18. Ke2 {[%emt 0:18:39]} (18. Rxc3 $2 Bb4 19. Rhh3 (19. Nxg7+ $2 Kf8 $19) 19... Nd5 $19) (18. Nxg7+ Kf8 19. Bxc6 (19. Rxc3 $2 Bb4 $19) 19... Nxc6 $17) 18... Bd4 {[%emt 0:10:19]} 19. f4 {[%emt 0:05:42]} (19. Nxg7+ Kf8 20. Nh5 Bxe5 21. Bxe7+ Nxe7 $17) (19. Rd1 $1 $15 a6 20. Nxg7+ Kf8 21. Bxe7+ Nxe7 22. Rxd4 axb5 23. Nh5) 19... O-O $36 {[%emt 0:08:16][%cal Be8g8,Bg8f8,Bf8e7][%mdl 2080] Black has strong initiative.} 20. Rd1 {[%emt 0:06:03] Strongly threatening Bxe7.} a6 {[%emt 0:19:44]} (20... f6 $17 21. Nxg7 fxg5 22. Nxe6 Rxf4 23. Nxf4 gxf4) 21. Bxe7 $15 {[%emt 0:01:34]} axb5 {[%emt 0:01:39]} 22. Bxf8 {[%emt 0:00:04]} Kxf8 {[%emt 0:00:02]} 23. Rb1 {[%emt 0:00:04] Against Nb4} ({White should try} 23. Kd3 $15) 23... b4 $19 {[%emt 0:00:02]} 24. Ng3 {[%emt 0:06:10]} Bc5 {[%emt 0:02:17]} 25. Rd1 {[%emt 0:00:04]} Nd4+ {[%emt 0:01:10]} 26. Rxd4 {[%emt 0:00:03]} Bxd4 $17 {[%emt 0:00:02][%mdl 4096] Endgame KRB-KRN} 27. Ne4 {[%emt 0:00:10]} (27. Kd3 $17 Bc5 28. Re2) 27... Ke7 {[%emt 0:00:43]} 28. h5 {[%emt 0:04:09]} Rd8 {[%emt 0:03:33]} 29. g5 {[%emt 0:04:31]} Bb6 {[%emt 0:04:19]} ({Better is} 29... Kf8 $1 $17 {White must now prevent ...b6.} 30. Nd6 f6) 30. h6 $11 {[%emt 0:00:14]} gxh6 {[%emt 0:04:37]} 31. gxh6 {[%emt 0:00:03]} Rh8 {[%emt 0:00:02]} 32. Nf6 $1 {[%emt 0:00:05]} Bd8 {[%emt 0:00:01]} 33. Kf3 {[%emt 0:04:04]} Kf8 {[%emt 0:00:03]} 34. Ng4 {[%emt 0:00:02][%cal Oa2a3]} Kg8 {[%emt 0:02:11]} 35. a3 $1 {[%emt 0:01:53]} bxa3 {[%emt 0:00:04]} 36. Rxc3 {[%emt 0:00:03]} Be7 {[%emt 0:00:10]} 37. Rc7 $1 {[%emt 0:00:12][%csl LRb7,LRe7]} a2 {[%emt 0:02:13]} 38. Rxe7 {[%emt 0:01:31] White wants to mate with Nf6+.} Rxh6 {[%emt 0:00:32][%mdl 8192] KRN-KR} 39. Re8+ $1 $18 {[%emt 0:00:48]} ({Inferior is} 39. Nxh6+ Kg7 40. Nxf7 (40. Rxf7+ $2 Kxh6 41. Rxb7 a1=Q $19) 40... a1=Q 41. Nd6+ Kg8 $11) 39... Kg7 {[%emt 0:00:02] And now ...Rh3+ would win.} 40. Ra8 {[%emt 0:00:02]} Rh3+ {[%emt 0:00:48]} 41. Ke4 {[%emt 0:30:30]} Rg3 $2 {[%emt 0:02:22]} (41... Rb3 42. Rxa2 Rb4+ 43. Kf3 Rb3+ 44. Ne3 f5 45. exf6+ Kxf6) 42. Ne3 {[%emt 0:00:00]} f5+ {[%emt 0:00:24]} (42... Rg1 $142) 43. exf6+ {[%emt 0:00:00]} Kxf6 {[%emt 0:00:01]} 44. Rxa2 {[%emt 0:00:00] Rb2 is the strong threat.} Rg7 {[%emt 0:01:04]} 45. Rb2 {[%emt 0:00:00]} Rc7 {[%emt 0:00:11]} 46. Rb6 {[%emt 0:00:00]} Ke7 {[%emt 0:00:02]} 47. Ke5 {[%emt 0:00:00]} Rc5+ {[%emt 0:00:01]} 48. Kd4 $1 {[%emt 0:00:00]} Rc7 {[%emt 0:00:02]} 49. Nc4 {[%emt 0:00:00]} Kf6 {[%emt 0:00:32]} 50. Rb5 {[%emt 0:00:00]} Rh7 {[%emt 0:01:35]} 51. Ke4 {[%emt 0:00:00] Hoping for Nd6.} Rd7 {[%emt 0:00:39] Prevents Nd6.} 52. Rb6 {[%emt 0:00:00] White threatens f5 and mate.} Rc7 {[%emt 0:00:16]} 53. Nd6 {[%emt 0:00:00] Ne8+ would kill now.} Rc1 {[%emt 0:00:13]} 54. Rxb7 {[%emt 0:00:00]} Re1+ {[%emt 0:00:08]} 55. Kf3 {[%emt 0:00:00]} Rf1+ {[%emt 0:01:14]} 56. Ke3 {[%emt 0:00:00]} Re1+ {[%emt 0:00:02]} 57. Kd2 {[%emt 0:00:00]} Rf1 {[%emt 0:00:11]} 58. Ne4+ {[%emt 0:00:00]} Kg6 {[%emt 0:00:07]} 59. Ke3 {[%emt 0:00:00]} Re1+ {[%emt 0:00:08]} 60. Kf3 {[%emt 0:00:00] Threatening mate with Rb5.} Rf1+ {[%emt 0:00:04] [#]} 61. Kg4 $2 {[%emt 0:00:00]} (61. Nf2 $1 $18 {Intending Rb6 and mate.} Kf6 62. Rb5) 61... Re1 $2 {[%emt 0:00:41][%mdl 8192]} (61... Rg1+ $14 62. Kf3 Rh1) 62. Ng3 {[%emt 0:00:00] White mates.} Re3 {[%emt 0:00:42]} 63. Rb5 {[%emt 0:00:00]} Kf6 {[%emt 0:00:11]} 64. Nh5+ {[%emt 0:00:00]} Kf7 {[%emt 0:00:02]} 65. Kg5 {[%emt 0:00:00]} Ke7 {[%emt 0:00:15]} 66. Re5 {[%emt 0:00:00]} Rf3 {[%emt 0:00:01]} 67. Kg4 {[%emt 0:00:00]} Rf2 {[%emt 0:00:35]} 68. Ng3 {[%emt 0:00:00]} Kf7 {[%emt 0:00:17]} 69. Ne4 {[%emt 0:00:00]} Rg2+ {[%emt 0:00:12]} 70. Kf3 {[%emt 0:00:00]} Rg6 {[%emt 0:00:13]} 71. Ng5+ {[%emt 0:00:00]} Ke7 {[%emt 0:00:08]} 72. Kg4 {[%emt 0:00:00]} Kd6 {[%emt 0:00:11] [#]} 73. Rxe6+ $1 {[%emt 0:00:00]} Rxe6 {[%emt 0:00:03]} 74. Nxe6 {[%emt 0:00:00]} Kxe6 {[%emt 0:00:03] KP-K} 75. Kg5 {[%emt 0:00:00]} Kf7 {[%emt 0:00:23] [#]} 76. Kf5 $1 {[%emt 0:00:00]} Ke7 {[%emt 0:01:21]} 77. Kg6 {[%emt 0:00:00]} Kf8 {[%emt 0:00:16]} 78. Kf6 {[%emt 0:00:00]} Ke8 {[%emt 0:00:04]} 79. Kg7 {[%emt 0:00:00]} Ke7 {[%emt 0:00:04]} 80. f5 {[%emt 0:00:00] Quite a comeback for White.  Weighted Error Value: White=0.10 (very precise) /Black=0.49} 1-0

[Event "XV American Continental 2022"]
[Site "San Salvador"]
[Date "2022.05.10"]
[Round "11.5"]
[White "Hungaski, Robert"]
[Black "Cervantes Landeiro, Thalia"]
[Result "1/2-1/2"]
[ECO "D26"]
[WhiteElo "2521"]
[BlackElo "2193"]
[Annotator "TA"]
[PlyCount "53"]
[EventDate "2022.05.02"]
[EventCountry "ESA"]
[SourceTitle "playchess.com"]
[Source "ChessBase"]
[SourceQuality "1"]
[TimeControl "40/5400+30:1800+30"]

{[%evp 15,53,29,41,-17,-10,-14,0,0,18,-25,-16,-37,-39,-37,-37,-43,-31,-36,-27,-37,-34,-43,-37,-83,-81,-89,-75,-71,-67,-73,-58,-89,-48,-56,-49,-42,0,-39,0,-58]} 1. d4 {[%emt 0:09:28]} d5 {[%emt 0:00:09]} 2. c4 {[%emt 0:00:12]} dxc4 {[%emt 0:00:08]} 3. Nf3 {[%emt 0:00:05]} Nf6 {[%emt 0:00:08]} 4. e3 {[%emt 0:00:04]} e6 {[%emt 0:00:07]} 5. Bxc4 {[%emt 0:00:06]} c5 {[%emt 0:00:12]} 6. O-O {[%emt 0:00:06]} Nc6 {[%emt 0:00:13]} 7. Nc3 {[%emt 0:01:38]} a6 {[%emt 0:00:26] 7...a6 is better than 7...cxd4.} 8. Bb3 {[%emt 0:00:46]} Be7 {8...cxd4 is not played anymore.} 9. d5 {[%emt 0:03:38] D27: Queen's Gambit Accepted: Classical main line: 7 e4!? and 7 a4.} (9. dxc5 $14 Qxd1 10. Rxd1) 9... exd5 $11 {[%emt 0:06:11]} 10. Nxd5 {[%emt 0:00:26][%cal Od1e2]} Nxd5 {[%emt 0:05:27]} 11. Bxd5 {[%emt 0:00:06] [#]} Nb4 $146 {[%emt 0:01:09]} ({Predecessor:} 11... Qc7 12. e4 O-O 13. Be3 Be6 14. Rc1 b6 15. Bxe6 fxe6 16. Qb3 Rf6 17. Ng5 Nd8 {1-0 (45) Costachi,M (2471)-Dordzhieva,D (2334) Chess.com INT 2021}) 12. e4 {[%emt 0:13:58]} Nxd5 {[%emt 0:03:00]} 13. Qxd5 {[%emt 0:07:36]} O-O {[%emt 0:02:53]} 14. Qh5 {[%emt 0:01:21]} Qb6 {[%emt 0:04:47]} 15. b3 {[%emt 0:10:14]} Qg6 {[%emt 0:05:42]} (15... Qe6 {seems wilder.} 16. Be3 b6 17. Ng5 Qg6) 16. Qxg6 {[%emt 0:00:07]} hxg6 {[%emt 0:00:09]} 17. Be3 {[%emt 0:06:30]} Be6 {[%emt 0:02:19]} 18. Rac1 {[%emt 0:02:02]} Rac8 {[%emt 0:02:01]} 19. Nd2 {[%emt 0:00:18]} (19. Rc2 $15 {was preferrable.}) 19... b5 $17 {[%emt 0:02:09]} 20. Rc2 {[%emt 0:00:06]} c4 {[%emt 0:06:42]} 21. bxc4 {[%emt 0:00:31]} bxc4 {[%emt 0:00:36]} 22. Nb1 {[%emt 0:12:29]} Rfd8 {[%emt 0:18:57]} 23. Rfc1 {[%emt 0:01:49]} Bb4 {[%emt 0:03:07][%cal Oc4c3]} 24. Bd2 {[%emt 0:11:42] Against c3} Bc5 {[%emt 0:05:58]} 25. Be3 {[%emt 0:00:18]} Bb4 {[%emt 0:02:46][%cal Oc4c3] Hoping for ...c3! This bishop pair is nice.} 26. Bd2 {[%emt 0:00:46] Prevents c3.} Bc5 {[%emt 0:02:55]} 27. Be3 {[%emt 0:00:06] Weighted Error Value: White=0.17 (very precise) /Black=0.10 (very precise)} 1/2-1/2

[Event "XV American Continental 2022"]
[Site "San Salvador"]
[Date "2022.05.10"]
[Round "11.6"]
[White "Morovic Fernandez, Ivan"]
[Black "Sarkar, Justin"]
[Result "0-1"]
[ECO "C70"]
[WhiteElo "2495"]
[BlackElo "2325"]
[Annotator "TA"]
[PlyCount "62"]
[EventDate "2022.05.02"]
[EventCountry "ESA"]
[SourceTitle "playchess.com"]
[Source "ChessBase"]
[SourceQuality "1"]
[TimeControl "40/5400+30:1800+30"]

{[%evp 16,62,45,54,43,40,43,26,33,0,0,0,0,0,-2,0,0,-6,0,-8,-5,-13,-13,-12,0,-7,-16,-15,-13,-10,-14,-26,-10,-11,-4,-29,-14,-33,-23,-8,-11,-116,-116,-159,-154,-156,-148,-199,-193]} 1. e4 {[%emt 0:00:05]} e5 {[%emt 0:00:56]} 2. Nf3 {[%emt 0:00:06]} Nc6 {[%emt 0:00:11]} 3. Bb5 {[%emt 0:00:05][%cal Bf1b5,Bb5a4,Ba4b3][%mdl 32]} a6 {[%emt 0:00:15]} 4. Ba4 {[%emt 0:00:08]} b5 {[%emt 0:00:52]} 5. Bb3 {[%emt 0:00:10]} Na5 {[%emt 0:00:08]} 6. O-O {[%emt 0:00:28]} d6 {[%emt 0:00:12]} 7. d4 {[%emt 0:00:15]} exd4 {[%emt 0:00:50] 7...exd4 scores better than 7...Nxb3.} 8. Nxd4 {[%emt 0:02:06]} Bb7 {[%emt 0:00:17]} 9. Bd2 {[%emt 0:04:33]} Nxb3 {[%emt 0:00:10] C70: Ruy Lopez: 3...a6 4 Ba4, Norwegian and Delayed Schliemann.} 10. Nxb3 {[%emt 0:00:05]} Rb8 11. Re1 {[%emt 0:11:33]} Nf6 {[%emt 0:03:26] White has an edge.} 12. Nc3 {[%emt 0:08:07]} Be7 {[%emt 0:02:23]} 13. Nd4 {[%emt 0:04:14][%cal Bb3d4,Bd4f3,Bf3e5][%mdl 32]} O-O {[%emt 0:10:34] [#]} 14. a3 $146 {[%emt 0:00:31]} ({Predecessor:} 14. Nf5 Re8 15. Bg5 b4 16. Nb1 Qd7 17. Nd2 Bd8 18. Qf3 Re5 19. Qg3 Nxe4 20. Nxe4 Qxf5 21. Bxd8 Rxd8 22. Ng5 Qxg5 {0-1 (22) Oliveira,S (2280)-Nesterov,A (2517) Chess.com INT 2020}) 14... g6 {[%emt 0:05:13] Prevents Nf5.} 15. Bg5 {[%emt 0:17:50]} Re8 {[%emt 0:04:43][%cal Of6e4]} 16. Nf3 {[%emt 0:07:52]} c5 {[%emt 0:05:25]} 17. e5 {[%emt 0:05:57]} dxe5 {[%emt 0:04:19]} 18. Qxd8 {[%emt 0:03:56]} Bxd8 {[%emt 0:01:38]} 19. Nxe5 {[%emt 0:01:42]} Kg7 {[%emt 0:09:32]} 20. Nd3 {[%emt 0:04:26] Pair of Knights!} Rxe1+ {[%emt 0:07:05]} (20... Be7 {with more complications.} 21. Bxf6+ Kxf6 22. a4 Ba8) 21. Rxe1 {[%emt 0:00:03]} Rc8 {[%emt 0:00:11]} 22. Be3 {[%emt 0:02:40]} Nd7 {[%emt 0:01:02]} 23. Rd1 {[%emt 0:05:15][%cal Od3c5]} Be7 {[%emt 0:03:51]} 24. f3 {[%emt 0:05:41]} Nb6 {[%emt 0:03:45]} 25. Re1 {[%emt 0:07:18][%cal Oe3h6]} Bf8 {[%emt 0:05:29]} 26. b4 {[%emt 0:01:30][%cal Rd3c5]} cxb4 {[%emt 0:01:45]} 27. axb4 {[%emt 0:00:32]} Nd7 {[%emt 0:00:22]} 28. Bd4+ {[%emt 0:06:04]} (28. Rc1 $11) 28... Kg8 $17 {[%emt 0:00:13]} 29. Ne4 {[%emt 0:00:29]} Bxe4 {[%emt 0:01:44] Black is clearly better.} ({And not} 29... Rxc2 30. Nec5 Rc4 31. Be3 Nxc5 32. Bxc5 $17) 30. Rxe4 {[%emt 0:00:50]} Rxc2 {[%emt 0:00:07]} 31. Nf4 {[%emt 0:00:43]} (31. Re1 $17) 31... Rc4 {[%emt 0:02:14] Weighted Error Value: White=0.21 (precise) /Black=0.03 (flawless)} 0-1

[Event "XV American Continental 2022"]
[Site "San Salvador"]
[Date "2022.05.10"]
[Round "11.7"]
[White "Thavandiran, Shiyam"]
[Black "Morales, Carlos"]
[Result "1/2-1/2"]
[ECO "B18"]
[WhiteElo "2399"]
[BlackElo "2005"]
[Annotator "TA"]
[PlyCount "100"]
[EventDate "2022.05.02"]
[EventCountry "ESA"]
[SourceTitle "playchess.com"]
[Source "ChessBase"]
[SourceQuality "1"]
[TimeControl "40/5400+30:1800+30"]

{[%evp 11,100,9,31,0,8,0,5,6,13,-3,13,8,37,0,36,36,33,30,29,33,29,35,42,43,29,14,30,30,30,30,49,50,45,29,25,18,20,8,16,0,0,-7,0,-35,-15,-8,-8,-34,-37,-41,-25,-46,0,0,0,-15,0,-45,-51,-41,0,0,0,0,0,0,20,0,0,0,0,0,0,-17,-42,-55,-68,-32,0,0,0,0,0,0,0,0,0,0,0,0,0]} 1. e4 {[%emt 0:00:03]} c6 {[%emt 0:01:51]} 2. d4 {[%emt 0:00:32]} d5 {[%emt 0:02:22]} 3. Nd2 {[%emt 0:00:15]} dxe4 {[%emt 0:00:43]} 4. Nxe4 {[%emt 0:00:08]} Bf5 {[%emt 0:00:16]} 5. Ng3 {[%emt 0:00:14]} Bg6 {[%emt 0:00:19]} 6. Nh3 {[%emt 0:00:18]} Nd7 {[%emt 0:00:17] Recently 6...Nf6 got a lot of attention.} 7. c3 {[%emt 0:00:10] B18: Classical Caro-Kann: 4...Bf5 sidelines.} Ngf6 {[%emt 0:00:22]} 8. Bc4 {[%emt 0:01:12]} e6 {[%emt 0:02:26]} 9. Nf4 {[%emt 0:02:10]} Bd6 10. O-O {[%emt 0:05:43][%cal Oc4e6]} O-O {[%emt 0:02:47]} 11. Re1 {[%emt 0:17:45]} Re8 {[%emt 0:00:37] [#]} 12. Qf3 $146 {[%emt 0:07:29]} ({Predecessor:} 12. Nxg6 hxg6 13. Ne4 Nxe4 14. Rxe4 Qe7 15. Qf3 Qf6 16. Qe2 Nb6 17. Bb3 a5 18. a4 {0-1 (44) Ayza Ballester,J (2198)-Perez Garcia,A (2115) La Pobla de Lillet 2018}) 12... Qb6 {[%emt 0:27:59]} 13. Nxg6 {[%emt 0:22:02]} hxg6 {[%emt 0:01:03]} 14. Ne4 {[%emt 0:06:12]} Nxe4 {[%emt 0:04:30]} 15. Rxe4 {[%emt 0:00:22]} c5 {[%emt 0:00:21]} 16. dxc5 {[%emt 0:05:44]} Qxc5 {[%emt 0:11:48]} 17. Bf1 {[%emt 0:08:40]} Nf6 {[%emt 0:06:30]} 18. Re1 {[%emt 0:01:55]} Rad8 {[%emt 0:12:43]} 19. g3 {[%emt 0:02:09]} b6 {[%emt 0:04:32]} 20. Be3 {[%emt 0:00:21]} Qh5 {[%emt 0:03:19]} 21. Qxh5 {[%emt 0:06:15]} gxh5 {[%emt 0:00:52]} 22. h3 {[%emt 0:03:38] Prevents Ng4.} h4 {[%emt 0:03:56]} 23. Kg2 {[%emt 0:00:18]} Bc5 {[%emt 0:05:07]} 24. Bxc5 {[%emt 0:04:53]} bxc5 {[%emt 0:01:08]} 25. Rad1 {[%emt 0:00:29]} Kf8 {[%emt 0:01:57]} 26. Kf3 {[%emt 0:00:41]} Ke7 {[%emt 0:00:23]} 27. Bg2 {[%emt 0:03:07]} Rb8 {[%emt 0:01:44]} 28. Rd2 {[%emt 0:00:22]} Red8 {[%emt 0:00:26]} 29. Red1 {[%emt 0:01:01]} Rd5 {[%emt 0:00:18][%cal Ob8b2]} 30. Ke2 {[%emt 0:00:39]} Rg5 {[%emt 0:00:24]} 31. g4 {[%emt 0:00:08] [#] Threatens to win with f4.} Re5+ {[%emt 0:00:20]} (31... c4 $1 $15 {deserves consideration.}) 32. Kd3 $11 {[%emt 0:00:27]} Nd5 {[%emt 0:01:10] White must now prevent ...Nf4+.} 33. Bxd5 {[%emt 0:00:54]} exd5 {[%emt 0:00:25][%mdl 4096] Endgame KRR-KRR} 34. f4 {[%emt 0:00:35]} (34. Kc2 $5 {[%cal Rd2d5]}) 34... Re4 {[%emt 0:00:09]} 35. Kc2 {[%emt 0:00:04]} Rxf4 {[%emt 0:00:35]} (35... d4 $5) 36. Rxd5 {[%emt 0:00:08]} Rf2+ {[%emt 0:00:05]} 37. R1d2 {[%emt 0:00:39]} Rxd2+ {[%emt 0:00:28]} 38. Rxd2 {[%emt 0:00:09] KR-KR} Ke6 {[%emt 0:00:23] Inhibits Rd5.} 39. c4 {[%emt 0:00:13]} Ke5 {[%emt 0:01:06]} 40. Rf2 {[%emt 0:01:43]} f6 {[%emt 0:00:11]} 41. Rf5+ {[%emt 0:02:54]} Kd4 {[%emt 0:01:24]} 42. Rf4+ {[%emt 0:13:05]} Ke3 {[%emt 0:01:21]} 43. Rf5 {[%emt 0:00:05]} Rc8 $1 {[%emt 0:00:10]} 44. Kc3 {[%emt 0:00:12]} Rc6 {[%emt 0:00:13] And now ...g6 would win.} 45. b4 $1 {[%emt 0:00:12] The position is equal.} cxb4+ {[%emt 0:01:44]} 46. Kxb4 {[%emt 0:00:02]} g6 {[%emt 0:01:14]} 47. Rf1 {[%emt 0:00:25]} Ke2 {[%emt 0:01:44]} 48. Rf4 {[%emt 0:00:06]} Ke3 {[%emt 0:00:08]} 49. Rf1 {[%emt 0:00:11]} Ke2 {[%emt 0:00:06]} 50. Rf4 {[%emt 0:00:27]} Ke3 {[%emt 0:00:06] Weighted Error Value: White=0.07 (flawless) /Black=0.08 (flawless)} 1/2-1/2